Cogmind - Beta 15 @@@ ROGUE MODE // 2025.06.28 @ 00:42:02 Player: Occam Result: Destroyed by Y-54 Guardian with Flak Gun Performance ------------- Evolutions (0) 0 Regions Visited (3) 600 Robots Destroyed (43) 215 Value Destroyed (911) 911 Prototype IDs (1) 20 Alien Tech Used (0) 0 Bonus (0) 0 TOTAL SCORE: 1746 Bonus ------- None Cogmind --------- Core Integrity 0/250 Matter 175/300 Energy 250/250 System Corruption 1% Temperature Cool (33) Movement Core (550) Ox10 Location -7/Recycling Parts ------- > --- POWER (1) -------- Ion Engine > --- PROPULSION (2) --- Subdweller Monowheel > --- UTILITY (2) ------ Large Storage Unit > --- WEAPON (2) ------- Improved Assault Rifle Improved Assault Rifle > --- INVENTORY (15) --- Compact Wheel Subdweller Monowheel VTOL Module VTOL Module VTOL Module VTOL Module Structural Scanner Machine Analyzer Improved Terrain Scanner Hacking Suite Subdweller Laser Grenade Launcher Datajack Scrap Shield Fragment (21) Scrap Shield Fragment (18) Peak State ------------ > --- POWER ------------ Ion Engine > --- PROPULSION ------- Light Treads Subdweller Monowheel > --- UTILITY ---------- Large Storage Unit Light Armor Plating > --- WEAPON ----------- Improved Assault Rifle Improved Assault Rifle > --- INVENTORY -------- Compact Wheel VTOL Module VTOL Module VTOL Module VTOL Module Large Storage Unit Structural Scanner Machine Analyzer Improved Terrain Scanner Hacking Suite Grenade Launcher Datajack [Rating: 14] Favorites ----------- Power Ion Engine Engine Ion Engine Propulsion Light Treads Treads Light Treads Leg Aluminum Leg Wheel Compact Wheel Utility Large Storage Unit Device Seismic Detector Storage Large Storage Unit Protection Light Armor Plating Weapon Improved Assault Rifle Energy Gun Medium Laser Ballistic Gun Improved Assault Rifle Launcher Grenade Launcher Build | -11 -10 -10 -7 ------- Run | Yrd Mat Sub Rec Slots Evolved . | . . . . Power . | . . . . Propulsion . | . . . . Utility . | . . . . Weapon . | . . . . Parts Attached 20 | 4 10 6 . Power 3 | . 2 1 . Engine 3 | . 2 1 . Core . | . . . . Reactor . | . . . . Propulsion 5 | 2 1 2 . Treads 3 | 2 . 1 . Leg . | . . . . Wheel 2 | . 1 1 . Hover . | . . . . Flight . | . . . . Utility 7 | 1 4 2 . Device 3 | 1 2 . . Storage 3 | . 2 1 . Processor . | . . . . Hackware . | . . . . Protection 1 | . . 1 . Artifact . | . . . . Weapon 5 | 1 3 1 . Energy Gun . | . . . . Energy Cannon . | . . . . Ballistic Gun 4 | 1 2 1 . Ballistic Cannon . | . . . . Launcher 1 | . 1 . . Special Weapon . | . . . . Impact Weapon . | . . . . Slashing Weapon . | . . . . Piercing Weapon . | . . . . Special Melee Weapon . | . . . . Unidentified Prototypes 1 | . 1 . . Parts Lost 9 | . 2 5 2 Power 2 | . 1 1 . Propulsion 4 | . 1 2 1 Utility 2 | . . 1 1 Weapon 1 | . . 1 . Highest Loss Streak 4 | . 1 4 2 To Critical Strikes . | . . . . Average Backups 13 | 5 12 14 13 Power 1 | 1 1 . . Propulsion 4 | 3 3 5 6 Utility 4 | . 5 5 4 Weapon 1 | 1 2 1 2 Tool/Special . | . . . . Unused Backups 19 | . 9 . 10 Power 1 | . 1 . . Propulsion 9 | . 3 . 6 Utility 5 | . 2 . 3 Weapon 3 | . 3 . . Tool/Special 1 | . . . 1 Average Slot Usage (%) 98 | . 99 95 100 Engine 13 | . 14 12 14 Treads 19 | . 23 11 14 Wheel 7 | . 3 14 14 Device 13 | . 14 12 . Storage 14 | . 14 14 14 Energy Gun 5 | . 9 . . Ballistic Gun 21 | . 18 27 28 Peak Build Rating 14 | 7 13 14 14 Average Rating 10 | 6 9 12 13 On Entrance 10 | 6 7 13 14 Naked Turns . | . . . . Heaviest Build 34 | 12 32 34 34 Greatest Support 40 | 40 40 20 20 Greatest Overweight (x) 1 | . 1 1 1 Average Overweight (x) . | . . 1 1 Largest Inventory Capacity 15 | 8 15 15 15 Average Capacity 13 | 8 13 15 15 Most Carried 15 | 8 15 15 15 Average Carried 13 | 5 12 14 15 Final Capacity 15 | 8 15 15 15 Final Carried 15 | 4 15 15 15 Class Distribution -------------------- 76% | Mutant 23% | Scavenger-Mutant Dominant Class ---------------- Mutant | -10/Materials Scavenger-Mutant | -10/Subcaves Scavenger-Mutant | -7/Recycling Resources | -11 -10 -10 -7 ----------- Run | Yrd Mat Sub Rec Matter Collected 729 | 224 249 256 . Remotely . | . . . . Salvage Created 1461 | 87 1124 250 . Parts 90 | 6 70 14 . Haulers Intercepted 1 | . 1 . . Recyclers Shooed 1 | . 1 . . Parts Field Recycled . | . . . . Retrieved Matter . | . . . . Parts Self-Destructed 16 | . . 16 . Prevented . | . . . . Kills | -11 -10 -10 -7 ------- Run | Yrd Mat Sub Rec Combat Hostiles Destroyed 23 | . 15 8 . Guns 22 | . 15 7 . AOE 1 | . . 1 . Classes Destroyed 12 | 2 8 2 . Worker 3 | . 3 . . Builder 4 | . 4 . . Tunneler 1 | 1 . . . Hauler 1 | . 1 . . Recycler 4 | 1 3 . . Mechanic 1 | . 1 . . Operator 2 | . 2 . . Turret 2 | . . 2 . Watcher 2 | . 2 . . Swarmer 6 | . 3 3 . Grunt 14 | . 12 2 . Subdweller 3 | . . 3 . Best Kill Streak 6 | 2 6 3 . Combat Bots Only 4 | . 4 3 . Max Kills in Single Turn 1 | 1 1 1 . Gunslinging . | . . . . Exploded 1 | . . 1 . Melee . | . . . . Uniques/NPCs Destroyed . | . . . . Combat | -11 -10 -10 -7 -------- Run | Yrd Mat Sub Rec Hostile Shots Fired 212 | . 62 123 27 Missed 59 | . 8 50 1 Hits 153 | . 54 73 26 Projectile 153 | . 54 73 26 Damage Taken 1544 | . 610 762 172 Core 255 | . 69 151 35 Absorbed by Shields . | . . . . Core Remaining (%) 100 | 100 . . . Volleys Fired 116 | 4 71 38 3 Largest 2 | 2 2 2 2 Hottest 70 | 70 70 46 46 Shots Fired 221 | 8 141 66 6 Gun 211 | 8 140 57 6 Cannon . | . . . . Launcher 10 | . 1 9 . Special . | . . . . Kinetic 156 | 4 89 57 6 Thermal 55 | 4 51 . . Explosive 10 | . 1 9 . Electromagnetic . | . . . . Robot Hit Streak 27 | 3 19 27 9 Robot Miss Streak 3 | 1 3 3 . Penetration Max . | . . . . Secondary Targets 5 | . 3 2 . Max Gunslinging Chain 1 | . 1 1 . Shots Hit Robots 159 | 5 102 46 6 Core Hits 80 | 3 51 25 1 Critical Kills 1 | . 1 . . Critical Parts Destroyed 1 | . 1 . . Critical Strikes 2 | . 2 . . Destroy 2 | . 2 . . Melee Attacks . | . . . . Impact . | . . . . Slashing . | . . . . Piercing . | . . . . Sneak Attacks . | . . . . Combat Hostiles . | . . . . Follow-up Attacks . | . . . . Damage Inflicted 2307 | 51 1281 883 92 Guns 2108 | 51 1244 721 92 Cannons . | . . . . Explosions 199 | . 37 162 . Melee . | . . . . Ramming . | . . . . Kinetic 1592 | 15 764 721 92 Thermal 553 | 36 517 . . Explosive 162 | . . 162 . Electromagnetic . | . . . . Impact . | . . . . Slashing . | . . . . Piercing . | . . . . Highest Corruption 1 | . 1 1 1 Average Corruption 1 | . 1 1 1 Corruption Purged . | . . . . Corruption Blocked . | . . . . Effects 10 | . 4 6 . Message Errors 4 | . . 4 . Heat Flow Errors 1 | . 1 . . Energy Discharges 2 | . 1 1 . Data Loss (minor) 1 | . 1 . . Data Loss (major) 2 | . 1 1 . Overload Shots . | . . . . Overflow Damage . | . . . . Projectiles . | . . . . Explosions . | . . . . Melee . | . . . . Knockbacks . | . . . . Impact . | . . . . Kinetic . | . . . . Secondary . | . . . . Self-Inflicted Damage . | . . . . Shots . | . . . . Rammed . | . . . . Targets Rammed . | . . . . Kicked . | . . . . Crushed . | . . . . Highest Temperature 198 | 80 198 3 25 Average Temperature 67 | 35 71 3 17 Received Heat Transfer 747 | . 312 381 54 Siege Activations . | . . . . Martial Activations . | . . . . Shielding Activations . | . . . . Robots Disrupted . | . . . . Combat Hostiles . | . . . . Robots Corrupted . | . . . . Combat Hostiles . | . . . . Parts Fried . | . . . . Impact Corruptions . | . . . . Robots Melted . | . . . . Combat Hostiles . | . . . . Parts Melted 3 | . 2 1 . Heat Transferred 1567 | 111 1456 . . Parts Sabotaged . | . . . . Parts Stolen . | . . . . Parts Stripped . | . . . . Power Chain Reactions . | . . . . Alert | -11 -10 -10 -7 ------- Run | Yrd Mat Sub Rec Maximum Alert Level . | . . . . Low Security (%) 100 | 100 100 . 100 Level 1 . | . . . . Level 2 . | . . . . Level 3 . | . . . . Level 4 . | . . . . Level 5 . | . . . . High Security . | . . . . Max Security . | . . . . Peak Influence 192 | 10 192 . 27 Initial 27 | . . . 27 Average 89 | 2 93 . 23 Influence Increases 723 | 10 533 180 . Destroy 0b10 Robot/C 440 | . 300 140 . Destroy 0b10 Robot/NC 90 | 10 80 . . Destroy Leader 86 | . 76 10 . Successful Hack 35 | . 35 . . Disable Machine 15 | . 15 . . Destroy Structure 27 | . 27 . . Lose Combat Pursuer 30 | . . 30 . Influence Decreases 716 | 10 373 282 51 Entered New Map 108 | . . 77 31 Time Decay 518 | 10 353 155 . Lost Part 90 | . 20 50 20 Squads Dispatched 3 | . 3 . . Investigation 2 | . 2 . . Extermination . | . . . . Reinforcement 1 | . 1 . . Assault . | . . . . Garrison . | . . . . Intercept . | . . . . Searches Triggered . | . . . . Construction Impeded . | . . . . Haulers Reinforced . | . . . . Active Scanning Responses . | . . . . Cargo Convoy Interrupts . | . . . . Stealth | -11 -10 -10 -7 --------- Run | Yrd Mat Sub Rec Distress Signals 1 | . 1 . . Communications Jammed . | . . . . Distress Signals . | . . . . Times Spotted 37 | . 24 12 1 Peak Tracking Total 5 | . 5 5 1 Tactical Retreats 1 | . . 1 . Traps | -11 -10 -10 -7 ------- Run | Yrd Mat Sub Rec Traps Triggered 2 | . 1 1 . Indirectly . | . . . . Trap Hack Attempts . | . . . . Triggered . | . . . . Disarmed . | . . . . Reprogrammed . | . . . . Reused . | . . . . Traps Extracted . | . . . . Installed . | . . . . Triggered . | . . . . Machines | -11 -10 -10 -7 ---------- Run | Yrd Mat Sub Rec Machines Disabled 3 | . 1 2 . Max in Single Turn 2 | . 1 2 . Machines Repaired . | . . . . Machines Dismantled . | . . . . Machines Sabotaged . | . . . . Overloaded Fab Kills . | . . . . Hacking | -11 -10 -10 -7 --------- Run | Yrd Mat Sub Rec Machines Accessed 7 | . 7 . . Terminals 6 | . 6 . . Fabricators . | . . . . Repair Stations 1 | . 1 . . Recycling Units . | . . . . Scanalyzers . | . . . . Garrison Access . | . . . . Total Hacks 25 | . 25 . . Successful 9 | . 9 . . Failed 16 | . 16 . . Catastrophic 1 | . 1 . . Database Lockouts . | . . . . Manual 21 | . 21 . . Terminals 23 | . 23 . . Fabricators . | . . . . Repair Stations 2 | . 2 . . Recycling Units . | . . . . Scanalyzers . | . . . . Garrison Access . | . . . . Terminal Hacks 6 | . 6 . . Part Schematic 1 | . 1 . . Robot Analysis 3 | . 3 . . Terminal Index 1 | . 1 . . Locate Traps 1 | . 1 . . Fabricator Hacks . | . . . . Repair Station Hacks . | . . . . Recycling Unit Hacks . | . . . . Scanalyzer . | . . . . Garrison Access Hacks . | . . . . Unauthorized Hacks 3 | . 3 . . Terminals 3 | . 3 . . Botnet 2 | . 2 . . Operators 1 | . 1 . . Fabricators . | . . . . Repair Stations . | . . . . Recycling Units . | . . . . Scanalyzers . | . . . . Garrison Access . | . . . . Data Cores Recovered . | . . . . Used . | . . . . Hacking Detections 7 | . 7 . . Full Trace Events 3 | . 3 . . Feedback Events . | . . . . Feedback Blocked . | . . . . Robot Schematics Acquired . | . . . . Robots Built . | . . . . Authchips . | . . . . Time . | . . . . Total Robot Build Rating . | . . . . Part Schematics Acquired 1 | . 1 . . Parts Built . | . . . . Authchips . | . . . . Time . | . . . . Total Part Build Rating . | . . . . Parts Repaired . | . . . . Time . | . . . . Parts Recycled . | . . . . Recycled Matter . | . . . . Retrieved Matter . | . . . . Retrieved Components . | . . . . Parts Scanalyzed . | . . . . Part Schematics Acquired . | . . . . Parts Damaged . | . . . . Bothacking | -11 -10 -10 -7 ------------ Run | Yrd Mat Sub Rec Used RIF Installer . | . . . . Robots Hacked . | . . . . Non-combat . | . . . . Combat . | . . . . Robot Hacks Applied . | . . . . Relay Couplers Released . | . . . . Fabnet Peak Effective % . | . . . . Robots Rewired . | . . . . Allies Hacked . | . . . . Hacks Repelled . | . . . . Allies | -11 -10 -10 -7 -------- Run | Yrd Mat Sub Rec Total Allies . | . . . . Largest Group . | . . . . Highest-Rated Group . | . . . . Highest-Rated Ally . | . . . . Total Orders . | . . . . Ally Attacks . | . . . . Total Damage . | . . . . Kills . | . . . . Allies Corrupted . | . . . . Allies Melted . | . . . . Intel | -11 -10 -10 -7 ------- Run | Yrd Mat Sub Rec Active Infowar (turns) 1723 | 23 1128 572 . Structural 680 | . 680 . . Seismic 1043 | 23 448 572 . Robot Analysis Total 3 | . 3 . . Derelict Logs Recovered 1 | . . 1 . Drone Launches . | . . . . Drone Recoveries . | . . . . Exploration | -11 -10 -10 -7 ------------- Run | Yrd Mat Sub Rec Turns Passed 1833 | 44 1128 652 9 Spaces Moved 822 | 20 530 271 1 Core . | . . . . Treads 537 | 3 379 155 . Legs 17 | 17 . . . Wheels 268 | . 151 116 1 Hover . | . . . . Flight . | . . . . Fastest Speed 115 | 120 115 115 120 Average Speed 160 | 126 147 186 120 Slowest Speed 240 | 160 240 240 120 Overloaded Moves . | . . . . Propulsion Burnouts . | . . . . Robots Hopped . | . . . . Potential Cave-ins . | . . . . Cave-ins Triggered . | . . . . Exploration Rate (%) 26 | 2 81 22 2 Regions Visited 3 Branch Regions 2 Pre-discovered Areas . | . . . . Known Exits Taken . | . . . . Unknown Exits Taken 3 | 1 1 1 . Scrap Searched . | . . . . Spaces Dug 4 | . 4 . . Terrain Destroyed 45 | . 29 16 . Melee . | . . . . Projectile . | . . . . AOE 45 | . 29 16 . Terrain Rammed . | . . . . Walls Destroyed . | . . . . Machines Disabled . | . . . . Actions | -11 -10 -10 -7 --------- Run | Yrd Mat Sub Rec Total 1133 | 33 748 348 4 Wait 125 | . 100 25 . Move 819 | 19 529 270 1 Hop . | . . . . Pick Up 28 | 1 22 5 . Fast Attach 5 | 1 3 1 . Attach 8 | 2 2 4 . Detach 3 | 2 1 . . Swap 11 | 1 6 4 . Drop 18 | 3 14 1 . Fire 116 | 4 71 38 3 Melee . | . . . . Ram . | . . . . Kick . | . . . . Crush . | . . . . Escape Stasis . | . . . . Rewire . | . . . . Trap . | . . . . Miscellaneous . | . . . . Route ------- -11/Scrapyard -10/Materials (discovered 5 exits: [*Mat x3] / [*Min] / [*Sub]) -10/Subcaves -7/Recycling History --------- Turn | Location | Event 14 | -11/Scrapyard | Discovered new exit (range 3) 45 | -11/Scrapyard | Entered Materials 260 | -10/Materials | Discovered new exit (range 15) 309 | -10/Materials | Build established: Mutant 723 | -10/Materials | Discovered new exit (range 13) 966 | -10/Materials | Discovered new exit (range 13) 1079 | -10/Materials | Discovered new exit (range 12) 1142 | -10/Materials | Discovered new exit (range 7) 1173 | -10/Materials | Entered Subcaves 1174 | -10/Subcaves | Approached by a straggling Scientist 1230 | -10/Subcaves | Learned 2 Materials zone layouts 1296 | -10/Subcaves | Shifting Twisted Machinery released Flamer 1303 | -10/Subcaves | Shifting Twisted Machinery released Sub. Monowheel 1615 | -10/Subcaves | Build established: Scavenger-Mutant 1640 | -10/Subcaves | Core integrity fell below 50% 1735 | -10/Subcaves | Discovered new exit (range 16) 1776 | -10/Subcaves | Core integrity fell below 20% 1796 | -10/Subcaves | Lost 4 parts (1p1n1u1w) 1825 | -10/Subcaves | Entered Recycling 1834 | -7/Recycling | Destroyed by Y-54 Guardian with Flak Gun Last Messages --------------- 01781_ Machine disabled. 01781_ Autobeam Turret destroyed. 01782_ 11-M3Z(R): "FREEEEDUMB!" 01783_ 11-M3Z(R) destroyed. 01788_ Autobeam Turret destroyed. 01792_ Acquired 19 matter. 01794_ The unstable cave ceiling collapses. 01795_ Acquired Sub. Monowheel. 01796_ Acquired 22 matter. 01803_ JRSST W#8:ST5TXGL7NM NI 01807_ Acquired Scrap Shield Fragment. 01808_ Acquired 12 matter. 01810_ Acquired Scrap Shield Fragment. 01816_ Dropped Lrg. Storage Unit. 01817_ Acquired Sub. Laser. LOCATION=UNKNOWN GOAL=ESCAPE 01826_ Y-54 Guardian springs to life. 01831_ Lgt. Armor Plating destroyed. 01834_ Lgt. Treads destroyed. Map ----- +----------------------------------------------------+ | | | | | | | | | ?????????????????????????????????????????????????? | | ?????????????????????????????????????????????????? | | ?????????????????????????????????????????????????? | | ?????????????????????????????????????????????????? | | ?????????????????????????????????????????????????? | | ?????????????????????????????????????????????????? | | ?????????????????????????????????????????????????? | | ?????????????????????????????????????????????????? | | ?????????????????????????????????????????????????? | | ?????????????????????????????????????????????????? | | ?????????????????????????????????????????????????? | | ?????????????????????????????????????????????????? | | ?????????????????????????????????????????????????? | | ?????????????????????????????????????????????????? | | ?????????????????????????????????????????????????? | | ?????????????????????????????????????????????????? | | ?????????????????????????????????????????????????? | | ?????????????????????????????????????????????????? | | ????????????#????????#???????????????????????????? | | ????????????# #### ######????????????????????? | | ????????????# " Y #????????????????????? | | ????????????? "T @ #????????????????????? | | ?????????? #????????????????????? | | ????????????# ####+######????????????????????? | | ????????????#????????????????????????????????????? | | ?????????????????????????????????????????????????? | | ?????????????????????????????????????????????????? | | ?????????????????????????????????????????????????? | | ?????????????????????????????????????????????????? | | ?????????????????????????????????????????????????? | | ?????????????????????????????????????????????????? | | ?????????????????????????????????????????????????? | | ?????????????????????????????????????????????????? | | ?????????????????????????????????????????????????? | | ?????????????????????????????????????????????????? | | ?????????????????????????????????????????????????? | | ?????????????????????????????????????????????????? | | ?????????????????????????????????????????????????? | | ?????????????????????????????????????????????????? | | ?????????????????????????????????????????????????? | | ?????????????????????????????????????????????????? | | ?????????????????????????????????????????????????? | | ?????????????????????????????????????????????????? | | ?????????????????????????????????????????????????? | | ?????????????????????????????????????????????????? | | ?????????????????????????????????????????????????? | +----------------------------------------------------+ Best States ------------- Heat Dissipation 25 Energy Generation 10 Energy Capacity 250 Matter Stores 300 Matter Capacity 300 Sight Range 16 Terrain Scan Density 10 Armor Coverage 150 Evasion (%) 50 Recoil Reduction 2 Item Schematics ----------------- Huge Storage Unit | -10/Materials | Hacked Robot Schematics ------------------ None Fabricated ------------ Nothing Repaired ---------- Nothing Alien Tech Used ----------------- None Achievements -------------- None Challenges ------------ None Game ------ Seed StrikeChainWeb Manual? 0 Play Time 00:14:34 Cumulative 649.5 hours Start 2025.06.28 @ 00:27:39 End 2025.06.28 @ 00:42:02 Sessions 1 Manual Loads 0 Difficulty Rogue Special Mode None Game No. 296 Rogue 152 Adventurer 144 Explorer 0 Win Type - Total 11 Types 4/1/5/1/0/0/0/0/0/0 Lore% 83 Gallery% 80 Achievement% 73 Wizard Run 0 Options --------- Layout 0 ASCII 0 Keyboard 0 Movement Mouse Keybinds 0 Fullscreen 2 Font 20/SmallcapsGlow Map View 66x50 Zoom Use 0% Tactical HUD 1 Map Filters NONE Filters NONE Steam 1 RUN: f0f10edd-0da7-4a14-98ea-2d26765cad2c